Workbook

Sheet Resumo (hidden)
B5: RESUMO
B8: Data:
B11: Resumo:
B14: Objetivo:
B19: Procedimentos:
B23: Conclusão:
B26: ATENÇÃO:
B32: legendas:
C33: Dados digitados (entrada manual)
C34: Números que merecem cuidado
C35: Totais
C36: Resultados mais relevantes
B37: A | C37: Previsão ou alteração

Sheet Calculadora de Tarifas
S4: Simulador de Faturas
K6: Simulador de Faturas | R6: 1 - Digite o volume total consumido (m³)
AN7: 2
R8: 2 - Clique no serviço oferecido | AF8: Auxiliar de cálculo das macros
C9: 1 | D9: Volume Consumido | K9: 1 - Digite o volume total consumido (m³)
C10: 2 | D10: Prestador | E10: 2.1 | F10: Copasa | K10: 2 - Seu prestador | M10: Saae Itabira | R10: 3 - Digite o número de economias* | U10: Categorias | W10: Número de economias | X10: Valor Água | Z10: Valor Esgoto | AB10: Valor Total | AF10: 1 | AG10: Índice Casa/Prédio
E11: 2.2 | F11: Copanor | K11: 3 - Selecione a sua categoria | R11: relativas a cada categoria | U11: =IF($M$10="Cesama",F25,IF($M$10="Copanor",F33,F18)) -> Residencial Social | AB11: =SUM(X11:AA11) -> 0 | AF11: =IF(AF10=1,1,IF(AF10=2,M15,"Erro")) -> 1 | AG11: Total de Economias Residenciais
E12: 2.3 | F12: Saae Itabira | K12: 4 - Selecione o serviço oferecido | M12: =IF(AN7=1,"Só água",IF(AN7=2,"Água e esgoto",IF(AN7=3,"Só esgoto",""))) -> Água e esgoto | U12: Residencial | AB12: 0
E13: 2.4 | F13: Saae Passos | U13: Comercial | AB13: 0 | AF13: =U6/W17 ->  | AI13: Volume por Economia
E14: 2.5 | F14: SAE Ituiutaba | K14: Casa | M14: Quantidade de apartamentos por hidrômetro | U14: Industrial | AB14: 0 | AI14: Valor Original
E15: 2.6 | F15: Cesama | K15: Prédio | M15: 1 | U15: Pública | AB15: 0
AB16: 0 | AH16: =IFERROR(ROUND(AF16*$W11,2),"") ->  | AJ16: =IFERROR(ROUND(AG16*$W11,2),"") ->  | AM16: =IF($M$10="Cesama",F25,IF($M$10="Copanor",F33,F18)) -> Residencial Social
C17: 3 | D17: Categoria | E17: COPASA, Saae de Passos, Itabira, Sae de Ituiutaba | K17: Serviço | M17: Água | N17: Esgoto | O17: Total | U17: Valor Total | W17: =SUM(W11:W16) -> 0 | X17: =SUM(X11:Y16) -> 0 | Z17: =SUM(Z11:AA16) -> 0 | AB17: 0 | AH17: =IFERROR(ROUND(AF17*$W12,2),"") ->  | AJ17: =IFERROR(ROUND(AG17*$W12,2),"") ->  | AM17: Residencial
E18: 3.1 | F18: Residencial Social | K18: Valor | M18: =IFERROR(IF(OR(M12=F39,M12=F40,M12=F41,M12=F46,M12=F47,M12=F48,M12=F49,M12=F56,M12=F57),INDIRECT("'"&M10&"'!"&"T14"),"")*AF11,"") -> 0 | N18: =IFERROR(IF(OR(M12=F41,M12=F43,M12=F48,M12=F51),INDIRECT("'"&M10&"'!"&"v14"),IF(OR(M12=F49,M12=F52),INDIRECT("'"&M10&"'!"&"w14"),IF(OR(M12=F40,M12=F42,M12=F47,M12=F50,M12=F57,M12=F58),INDIRECT("'"&M10&"'!"&"u14"),"")))*AF11,"") -> 0 | O18: =SUM(M18:N18) -> 0 | AH18: =IFERROR(ROUND(AF18*$W13,2),"") ->  | AJ18: =IFERROR(ROUND(AG18*$W13,2),"") ->  | AM18: Comercial
E19: 3.2 | F19: Residencial | S19: * Economia faz referência ao número de unidades familiares, comerciais ou produtivas que existem para um mesmo hidrômetro/ligação. Existindo em um mesma construção, com hidrômetro único, três famílias e duas lojas, têm-se 3 economias residenciais e 2 economias comerciais para 1 ligação | AM19: Industrial
E20: 3.3 | F20: Comercial | AM20: Pública
E21: 3.4 | F21: Industrial
E22: 3.5 | F22: Pública
F23: ="" -> 
E24: Cesama | K24: Agência Reguladora de Serviços de Abastecimento de Água e Esgotamento Sanitário do Estado de MG - ARSAE
E25: 3.1 | F25: Residencial Social | S25: Agência Reguladora de Serviços de Abastecimento de Água e Esgotamento Sanitário do Estado de MG - ARSAE
E26: 3.6 | F26: Residencial Unifamiliar
E27: 3.7 | F27: Residencial Multifamiliar
E28: 3.3 | F28: Comercial | R28: Notas: - Esta calculadora não é ajustada para cálculos em meses com mudança de tarifas. Nestas situações o prestador aplicará tanto as tarifas novas quanto as antigas de acordo com o período de leitura do
E29: 3.4 | F29: Industrial | R29: hidrômetro e com a data da mudança das tarifas, individualizando o cálculo.
E30: 3.5 | F30: Pública | R30: - Diferenças de poucos centavos podem ocorrer devido a critérios de arredondamentos adotados.
E32: Copanor
E33: 3.2 | F33: Residencial
E34: 3.3 | F34: Comercial
E35: 3.4 | F35: Industrial
E36: 3.5 | F36: Pública
F37: ="" -> 
C38: 4 | D38: Serviço oferecido | E38: COPASA | F38: ="" -> 
E39: 4.10 | F39: Só água
E40: 4.15 | F40: Água e coleta de esgoto
E41: 4.20 | F41: Água com coleta e tratamento de esgoto
E42: 4.25 | F42: Só coleta de esgoto
E43: 4.30 | F43: Só tratamento de esgoto
E45: COPANOR
E46: 4.10 | F46: Só água
E47: 4.15 | F47: Água e coleta de esgoto
E48: 4.20 | F48: Água e tratamento de esgoto
E49: 4.25 | F49: Água e esgoto estático
E50: 4.30 | F50: Só coleta de esgoto
E51: 4.35 | F51: Só tratamento de esgoto
E52: 4.40 | F52: Só esgoto estático
E55: SAAE de Passos, Itabira, Sae de Ituiutaba e Cesama
E56: 4.1 | F56: Só água
F57: Água e esgoto
F58: Só esgoto

Sheet Tutorial de preenchimento
Y6: EXEMPLO DE PREENCHIMENTO DO SIMULADOR

Sheet Quadro Tarifário
E6: Tabela Tarifária II - Revisão Específica 2015 Tarifa de Aplicação (Novembro/15 a Outubro/16)

Sheet Copasa (hidden)
F1: Título
F2: =TODAY() -> 2015-11-13
E5: Tabela Tarifária II - Tarifas Aplicáveis aos Usuários
E7: Considerar apenas as colunas correspondentes aos serviços prestados:
E8: - Água: Abastecimento de água
E9: - EDC: esgotamento dinâmico com coleta
E10: - EDT: esgotamento dinâmico com coleta e tratamento
E12: Classe de Consumo | F12: Código Tarifário | G12: Intervalo de Consumo (m³) | H12: Tarifas de Aplicação | T12: Valor
H13: Maio/15 a Abril/16 | T13: Água | U13: EDC | V13: EDT
H14: 1 | I14: 2 | J14: 3 | P14: Categoria | Q14: ='Calculadora de Tarifas'!M11 -> 0 | T14: =(IF(Q17="0",SUMIFS(H16:H50,C16:C50,"0",B16:B50,Q14),SUMIFS(L16:L50,B16:B50,Q14,D16:D50,Q17)+(Q15-Q17)*SUMIFS(H16:H50,B16:B50,Q14,D16:D50,S17)-IF(Q14="Residencial Social",IF(Q15<=10,(L18-L16),0),IF(Q14="Residencial",IF(Q15<=10,(L26-L24),0)))-IF(Q15<=10,IF(Q14="Residencial Social",IF(Q15>6,(Q15-A16)*(H19-H17),0),IF(Q14="Residencial",IF(Q15>6,(Q15-A24)*(H27-H25),0))),0))) -> 0 | U14: =(IF(Q17="0",SUMIFS(I16:I50,C16:C50,"0",B16:B50,Q14),SUMIFS(M16:M50,B16:B50,Q14,D16:D50,Q17)+(Q15-Q17)*SUMIFS(I16:I50,B16:B50,Q14,D16:D50,S17)-IF(Q14="Residencial Social",IF(Q15<=10,(M18-M16),0),IF(Q14="Residencial",IF(Q15<=10,(M26-M24),0)))-IF(Q15<=10,IF(Q14="Residencial Social",IF(Q15>6,(Q15-A16)*(I19-I17),0),IF(Q14="Residencial",IF(Q15>6,(Q15-A24)*(I27-I25),0))),0))) -> 0 | V14: =(IF(Q17="0",SUMIFS(J16:J50,C16:C50,"0",B16:B50,Q14),SUMIFS(N16:N50,B16:B50,Q14,D16:D50,Q17)+(Q15-Q17)*SUMIFS(J16:J50,B16:B50,Q14,D16:D50,S17)-IF(Q14="Residencial Social",IF(Q15<=10,(N18-N16),0),IF(Q14="Residencial",IF(Q15<=10,(N26-N24),0)))-IF(Q15<=10,IF(Q14="Residencial Social",IF(Q15>6,(Q15-A16)*(J19-J17),0),IF(Q14="Residencial",IF(Q15>6,(Q15-A24)*(J27-J25),0))),0))) -> 0
H15: Água | I15: EDC | J15: EDT | P15: Consumo (m³) | Q15: ='Calculadora de Tarifas'!U6/'Calculadora de Tarifas'!AF11 -> 0
A16: 6 | B16: Residencial Social | C16: 0 | D16: a | E16: Residencial Tarifa Social até 10 m³ | F16: ResTS até 10 m³ | G16: 0 - 6 | H16: 9.56 | I16: 4.79 | J16: 8.63 | K16: R$/mês | L16: =H16 -> 9.56 | M16: =I16 -> 4.79 | N16: =J16 -> 8.63
A17: 10 | B17: Residencial Social | C17: 6 | D17: b | G17: > 6 - 10 | H17: 2.128 | I17: 1.064 | J17: 1.915 | K17: R$/m³ | L17: =L16+($A17-$A16)*H17 -> 18.072 | M17: =M16+($A17-$A16)*I17 -> 9.046 | N17: =N16+($A17-$A16)*J17 -> 16.29 | Q17: =IFERROR(INDEX(IF(B16:B50=Q14,D16:D50,"Erro"),MATCH(Q15,IF(B16:B50=Q14,D16:D50,"Erro"),1),),"0") -> 0 | R17: a | S17: =IFERROR(INDEX(IF(B16:B50=Q14,D16:D50,"Erro"),MATCH(Q15,IF(B16:B50=Q14,D16:D50,"Erro"),1)+1,),"6") -> 6 | T17: m³
B18: Residencial Social | D18: 6 | E18: Residencial Tarifa Social maior que 10 m³ | F18: ResTS > 10m³ | G18: 0 - 6 | H18: 10.08 | I18: 5.05 | J18: 9.06 | K18: R$/mês | L18: =H18 -> 10.08 | M18: =I18 -> 5.05 | N18: =J18 -> 9.06
B19: Residencial Social | C19: 6 | D19: 10 | G19: > 6 - 10 | H19: 2.241 | I19: 1.122 | J19: 2.017 | K19: R$/m³ | L19: =L18+($D19-$D18)*H19 -> 19.044 | M19: 9.538 | N19: 17.128
B20: Residencial Social | C20: 10 | D20: 15 | G20: > 10 - 15 | H20: 4.903 | I20: 2.451 | J20: 4.412 | K20: R$/m³ | L20: 43.559 | M20: 21.793 | N20: 39.188
B21: Residencial Social | C21: 15 | D21: 20 | G21: > 15 - 20 | H21: 5.461 | I21: 2.731 | J21: 4.916 | K21: R$/m³ | L21: 70.864 | M21: 35.448 | N21: 63.768
B22: Residencial Social | C22: 20 | D22: 40 | G22: > 20 - 40 | H22: 5.487 | I22: 2.744 | J22: 4.939 | K22: R$/m³ | L22: 180.604 | M22: 90.328 | N22: 162.548
B23: Residencial Social | C23: 40 | D23: 999999 | G23: > 40 | H23: 10.066 | I23: 5.035 | J23: 9.06 | K23: R$/m³
A24: 6 | B24: Residencial | C24: 0 | D24: a | E24: Residencial até 10 m³ | F24: Res até 10 m³ | G24: 0 - 6 | H24: 15.94 | I24: 7.97 | J24: 14.38 | K24: R$/mês | L24: =H24 -> 15.94 | M24: =I24 -> 7.97 | N24: =J24 -> 14.38
A25: 10 | B25: Residencial | C25: 6 | D25: b | G25: > 6 - 10 | H25: 2.661 | I25: 1.33 | J25: 2.394 | K25: R$/m³ | L25: =L24+($A25-$A24)*H25 -> 26.584 | M25: =M24+($A25-$A24)*I25 -> 13.29 | N25: =N24+($A25-$A24)*J25 -> 23.956
B26: Residencial | D26: 6 | E26: Residencial maior que 10 m³ | F26: Res > 10m³ | G26: 0 - 6 | H26: 16.8 | I26: 8.4 | J26: 15.1 | K26: R$/mês | L26: =H26 -> 16.8 | M26: =I26 -> 8.4 | N26: =J26 -> 15.1
B27: Residencial | C27: 6 | D27: 10 | G27: > 6 - 10 | H27: 2.801 | I27: 1.401 | J27: 2.52 | K27: R$/m³ | L27: =L26+($D27-$D26)*H27 -> 28.004 | M27: 14.004 | N27: 25.18
B28: Residencial | C28: 10 | D28: 15 | G28: > 10 - 15 | H28: 5.447 | I28: 2.724 | J28: 4.903 | K28: R$/m³ | L28: 55.239 | M28: 27.624 | N28: 49.695
B29: Residencial | C29: 15 | D29: 20 | G29: > 15 - 20 | H29: 5.461 | I29: 2.731 | J29: 4.916 | K29: R$/m³ | L29: 82.544 | M29: 41.279 | N29: 74.275
B30: Residencial | C30: 20 | D30: 40 | G30: > 20 - 40 | H30: 5.487 | I30: 2.744 | J30: 4.939 | K30: R$/m³ | L30: 192.284 | M30: 96.159 | N30: 173.055
B31: Residencial | C31: 40 | D31: 999999 | G31: > 40 | H31: 10.066 | I31: 5.035 | J31: 9.06 | K31: R$/m³
B32: Comercial | C32: 0 | D32: 6 | E32: Comercial | F32: Com | G32: 0 - 6 | H32: 25.79 | I32: 12.9 | J32: 23.23 | K32: R$/mês | L32: =H32 -> 25.79 | M32: =I32 -> 12.9 | N32: =J32 -> 23.23
B33: Comercial | C33: 6 | D33: 10 | G33: > 6 - 10 | H33: 4.299 | I33: 2.15 | J33: 3.871 | K33: R$/m³ | L33: =L32+($D33-$D32)*H33 -> 42.986 | M33: 21.5 | N33: 38.714
B34: Comercial | C34: 10 | D34: 40 | G34: > 10 - 40 | H34: 8.221 | I34: 4.111 | J34: 7.398 | K34: R$/m³ | L34: 289.616 | M34: 144.83 | N34: 260.654
B35: Comercial | C35: 40 | D35: 100 | G35: > 40 - 100 | H35: 8.288 | I35: 4.142 | J35: 7.459 | K35: R$/m³ | L35: 786.896 | M35: 393.35 | N35: 708.194
B36: Comercial | C36: 100 | D36: 999999 | G36: > 100 | H36: 8.329 | I36: 4.164 | J36: 7.496 | K36: R$/m³
B37: Industrial | C37: 0 | D37: 6 | E37: Industrial | F37: Ind | G37: 0 - 6 | H37: 27.37 | I37: 13.69 | J37: 24.64 | K37: R$/mês | L37: =H37 -> 27.37 | M37: =I37 -> 13.69 | N37: =J37 -> 24.64
B38: Industrial | C38: 6 | D38: 10 | G38: > 6 - 10 | H38: 4.562 | I38: 2.281 | J38: 4.107 | K38: R$/m³ | L38: =L37+($D38-$D37)*H38 -> 45.618 | M38: 22.814 | N38: 41.068
B39: Industrial | C39: 10 | D39: 20 | G39: > 10 - 20 | H39: 7.992 | I39: 3.996 | J39: 7.193 | K39: R$/m³ | L39: 125.538 | M39: 62.774 | N39: 112.998
B40: Industrial | C40: 20 | D40: 40 | G40: > 20 - 40 | H40: 8.017 | I40: 4.009 | J40: 7.215 | K40: R$/m³ | L40: 285.878 | M40: 142.954 | N40: 257.298
B41: Industrial | C41: 40 | D41: 100 | G41: > 40 -100 | H41: 8.095 | I41: 4.049 | J41: 7.285 | K41: R$/m³ | L41: 771.578 | M41: 385.894 | N41: 694.398
B42: Industrial | C42: 100 | D42: 600 | G42: > 100 - 600 | H42: 8.316 | I42: 4.157 | J42: 7.484 | K42: R$/m³ | L42: 4929.578 | M42: 2464.394 | N42: 4436.398
B43: Industrial | C43: 600 | D43: 999999 | G43: > 600 | H43: 8.405 | I43: 4.202 | J43: 7.564 | K43: R$/m³
B44: Pública | C44: 0 | D44: 6 | E44: Pública | F44: Pub | G44: 0 - 6 | H44: 24.28 | I44: 12.14 | J44: 21.87 | K44: R$/mês | L44: =H44 -> 24.28 | M44: =I44 -> 12.14 | N44: =J44 -> 21.87
B45: Pública | C45: 6 | D45: 10 | G45: > 6 - 10 | H45: 4.049 | I45: 2.025 | J45: 3.642 | K45: R$/m³ | L45: =L44+($D45-$D44)*H45 -> 40.476 | M45: 20.24 | N45: 36.438
B46: Pública | C46: 10 | D46: 20 | G46: > 10 - 20 | H46: 6.982 | I46: 3.49 | J46: 6.283 | K46: R$/m³ | L46: 110.296 | M46: 55.14 | N46: 99.268
B47: Pública | C47: 20 | D47: 40 | G47: > 20 - 40 | H47: 8.439 | I47: 4.218 | J47: 7.595 | K47: R$/m³ | L47: 279.076 | M47: 139.5 | N47: 251.168
B48: Pública | C48: 40 | D48: 100 | G48: > 40 -100 | H48: 8.546 | I48: 4.274 | J48: 7.693 | K48: R$/m³ | L48: 791.836 | M48: 395.94 | N48: 712.748
B49: Pública | C49: 100 | D49: 300 | G49: > 100 - 300 | H49: 8.571 | I49: 4.285 | J49: 7.713 | K49: R$/m³ | L49: 2506.036 | M49: 1252.94 | N49: 2255.348
B50: Pública | C50: 300 | D50: 999999 | G50: > 300 | H50: 8.644 | I50: 4.323 | J50: 7.78 | K50: R$/m³

Sheet Copanor (hidden)
C1: Título
C2: =TODAY() -> 2015-11-13
E5: Tabela Tarifária II - Tarifas Aplicáveis aos Usuários
E6: Considerar apenas as colunas correspondentes aos serviços prestados:
E7: - Água: Abastecimento de água
E8: - EDT: esgotamento dinâmico com coleta e tratamento
E9: - EDC: esgotamento dinâmico com coleta, sem tratamento
E10: - EE: esgotamento estático (fossa)
E12: Categoria | F12: Código Tarifário | G12: Intervalo de Consumo m³ | H12: Tarifas | T12: Valor
H13: R$/m³ | T13: Água | U13: EDC | V13: EDT | W13: EE
H14: Água | I14: Esgoto | P14: Categoria | Q14: ='Calculadora de Tarifas'!M11 -> 0 | T14: =(IF(Q17="0",SUMIFS(H16:H47,C16:C47,"0",B16:B47,Q14),SUMIFS(M16:M47,B16:B47,Q14,D16:D47,Q17)+(Q15-Q17)*SUMIFS(H16:H47,B16:B47,Q14,D16:D47,S17)-IF(Q14="Residencial",IF(Q15<=10,(M19-M16),0))-IF(Q14="Residencial",IF(Q15<=10,IF(Q15>6,(Q15-6)*(H21-H18)+3*(H20-H17),0))))-IF(Q14="Residencial",IF(Q15<=6,IF(Q15>3,(Q15-3)*(H20-H17),0),0),0)) -> 0 | U14: =(IF(Q17="0",SUMIFS(J16:J47,C16:C47,"0",B16:B47,Q14),SUMIFS(O16:O47,B16:B47,Q14,D16:D47,Q17)+(Q15-Q17)*SUMIFS(J16:J47,B16:B47,Q14,D16:D47,S17)-IF(Q14="Residencial",IF(Q15<=10,(O19-O16),0))-IF(Q14="Residencial",IF(Q15<=10,IF(Q15>6,(Q15-6)*(J21-J18)+3*(J20-J17),0))))-IF(Q14="Residencial",IF(Q15<=6,IF(Q15>3,(Q15-3)*(J20-J17),0),0),0)) -> 0 | V14: =(IF(Q17="0",SUMIFS(I16:I47,C16:C47,"0",B16:B47,Q14),SUMIFS(N16:N47,B16:B47,Q14,D16:D47,Q17)+(Q15-Q17)*SUMIFS(I16:I47,B16:B47,Q14,D16:D47,S17)-IF(Q14="Residencial",IF(Q15<=10,(N19-N16),0))-IF(Q14="Residencial",IF(Q15<=10,IF(Q15>6,(Q15-6)*(I21-I18)+3*(I20-I17),0))))-IF(Q14="Residencial",IF(Q15<=6,IF(Q15>3,(Q15-3)*(I20-I17),0),0),0)) -> 0 | W14: =(IF(Q17="0",SUMIFS(K16:K47,C16:C47,"0",B16:B47,Q14),SUMIFS(P16:P47,B16:B47,Q14,D16:D47,Q17)+(Q15-Q17)*SUMIFS(K16:K47,B16:B47,Q14,D16:D47,S17)-IF(Q14="Residencial",IF(Q15<=10,(P19-P16),0))-IF(Q14="Residencial",IF(Q15<=10,IF(Q15>6,(Q15-6)*(K21-K18)+3*(K20-K17),0))))-IF(Q14="Residencial",IF(Q15<=6,IF(Q15>3,(Q15-3)*(K20-K17),0),0),0)) -> 0
I15: EDT | J15: EDC | K15: EE | P15: Consumo (m³) | Q15: ='Calculadora de Tarifas'!M9/'Calculadora de Tarifas'!AF11 -> 0
A16: 3 | B16: Residencial | C16: 0 | D16: a | E16: Residencial até 10 m³ | F16: Res até 10 m³ | G16: 0 - 3 | H16: 4.11 | I16: 3.71 | J16: 2.07 | K16: 1.24 | L16: R$/mês | M16: =H16 -> 4.11 | N16: =I16 -> 3.71 | O16: =J16 -> 2.07 | P16: =K16 -> 1.24
A17: 6 | B17: Residencial | C17: 3 | D17: b | G17: > 3 - 6 | H17: 1.37 | I17: 1.24 | J17: 0.69 | K17: 0.42 | L17: R$/m³ | M17: =M16+($A17-$A16)*H17 -> 8.22 | N17: 7.43 | O17: 4.14 | P17: 2.5 | Q17: =IFERROR(INDEX(IF(B16:B47=Q14,D16:D47,"Erro"),MATCH(Q15,IF(B16:B47=Q14,D16:D47,"Erro"),1),),"0") -> 0 | R17: a | S17: =IFERROR(INDEX(IF(B16:B47=Q14,D16:D47,"Erro"),MATCH(Q15,IF(B16:B47=Q14,D16:D47,"Erro"),1)+1,),"3") -> 3 | T17: m³
A18: 10 | B18: Residencial | C18: 6 | D18: c | G18: > 6 - 10 | H18: 1.443 | I18: 1.299 | J18: 0.721 | K18: 0.436 | L18: R$/m³ | M18: 13.992 | N18: 12.626 | O18: 7.024 | P18: 4.244
B19: Residencial | D19: 3 | E19: Residencial maior que 10 m³ | F19: Res > 10m³ | G19: 0 - 3 | H19: 4.36 | I19: 3.92 | J19: 2.18 | K19: 1.31 | L19: R$/mês | M19: =H19 -> 4.36 | N19: =I19 -> 3.92 | O19: =J19 -> 2.18 | P19: =K19 -> 1.31
B20: Residencial | C20: 3 | D20: 6 | G20: > 3 - 6 | H20: 1.46 | I20: 1.31 | J20: 0.73 | K20: 0.43 | L20: R$/m³ | M20: =M19+($D20-$D19)*H20 -> 8.74 | N20: =N19+($D20-$D19)*I20 -> 7.85 | O20: =O19+($D20-$D19)*J20 -> 4.37 | P20: =P19+($D20-$D19)*K20 -> 2.6
B21: Residencial | C21: 6 | D21: 10 | G21: > 6 - 10 | H21: 1.518 | I21: 1.367 | J21: 0.759 | K21: 0.458 | L21: R$/m³ | M21: =M20+($D21-$D20)*H21 -> 14.812 | N21: 13.318 | O21: =O20+($D21-$D20)*J21 -> 7.406 | P21: 4.432
B22: Residencial | C22: 10 | D22: 15 | G22: > 10 - 15 | H22: 2.967 | I22: 2.67 | J22: 1.484 | K22: 0.895 | L22: R$/m³ | M22: 29.647 | N22: 26.668 | O22: 14.826 | P22: 8.907
B23: Residencial | C23: 15 | D23: 20 | G23: > 15 - 20 | H23: 5.013 | I23: 4.512 | J23: 2.507 | K23: 1.512 | L23: R$/m³ | M23: 54.712 | N23: 49.228 | O23: 27.361 | P23: 16.467
B24: Residencial | C24: 20 | D24: 40 | G24: > 20 - 40 | H24: 5.189 | I24: 4.67 | J24: 2.594 | K24: 1.564 | L24: R$/m³ | M24: 158.492 | N24: 142.628 | O24: 79.241 | P24: 47.747
B25: Residencial | C25: 40 | D25: 999999 | G25: > 40 | H25: 9.169 | I25: 8.252 | J25: 4.585 | K25: 2.766 | L25: R$/m³
B26: Comercial | C26: 0 | D26: 3 | E26: Comercial | F26: Com | G26: 0 - 3 | H26: 10.43 | I26: 9.38 | J26: 5.21 | K26: 3.15 | L26: R$/mês | M26: =H26 -> 10.43 | N26: =I26 -> 9.38 | O26: =J26 -> 5.21 | P26: =K26 -> 3.15
B27: Comercial | C27: 3 | D27: 6 | G27: > 3 - 6 | H27: 3.48 | I27: 3.12 | J27: 1.73 | K27: 1.04 | L27: R$/m³ | M27: =M26+($D27-$D26)*H27 -> 20.87 | N27: 18.74 | O27: 10.4 | P27: 6.27
B28: Comercial | C28: 6 | D28: 10 | G28: > 6 - 10 | H28: 3.482 | I28: 3.135 | J28: 1.741 | K28: 1.049 | L28: R$/m³ | M28: 34.798 | N28: 31.28 | O28: 17.364 | P28: 10.466
B29: Comercial | C29: 10 | D29: 40 | G29: > 10 - 40 | H29: 5.993 | I29: 5.393 | J29: 2.997 | K29: 1.807 | L29: R$/m³ | M29: 214.588 | N29: 193.07 | O29: 107.274 | P29: 64.676
B30: Comercial | C30: 40 | D30: 100 | G30: > 40 - 100 | H30: 7.132 | I30: 6.418 | J30: 3.567 | K30: 2.151 | L30: R$/m³ | M30: 642.508 | N30: 578.15 | O30: 321.294 | P30: 193.736
B31: Comercial | C31: 100 | D31: 999999 | G31: > 100 | H31: 7.21 | I31: 6.488 | J31: 3.605 | K31: 2.174 | L31: R$/m³
B32: Industrial | C32: 0 | D32: 3 | E32: Industrial | F32: Ind | G32: 0 - 3 | H32: 10.43 | I32: 9.38 | J32: 5.21 | K32: 3.15 | L32: R$/mês | M32: =H32 -> 10.43 | N32: =I32 -> 9.38 | O32: =J32 -> 5.21 | P32: =K32 -> 3.15
B33: Industrial | C33: 3 | D33: 6 | G33: > 3 - 6 | H33: 3.48 | I33: 3.12 | J33: 1.73 | K33: 1.04 | L33: R$/m³ | M33: =M32+($D33-$D32)*H33 -> 20.87 | N33: =N32+($D33-$D32)*I33 -> 18.74 | O33: =O32+($D33-$D32)*J33 -> 10.4 | P33: =P32+($D33-$D32)*K33 -> 6.27
B34: Industrial | C34: 6 | D34: 10 | G34: > 6 - 10 | H34: 3.482 | I34: 3.135 | J34: 1.741 | K34: 1.049 | L34: R$/m³ | M34: =M33+($D34-$D33)*H34 -> 34.798 | N34: 31.28 | O34: =O33+($D34-$D33)*J34 -> 17.364 | P34: 10.466
B35: Industrial | C35: 10 | D35: 20 | G35: > 10 - 20 | H35: 5.993 | I35: 5.393 | J35: 2.997 | K35: 1.807 | L35: R$/m³ | M35: 94.728 | N35: 85.21 | O35: 47.334 | P35: 28.536
B36: Industrial | C36: 20 | D36: 40 | G36: > 20 - 40 | H36: 5.993 | I36: 5.393 | J36: 2.997 | K36: 1.807 | L36: R$/m³ | M36: 214.588 | N36: 193.07 | O36: 107.274 | P36: 64.676
B37: Industrial | C37: 40 | D37: 100 | G37: > 40 -100 | H37: 7.132 | I37: 6.418 | J37: 3.567 | K37: 2.151 | L37: R$/m³ | M37: 642.508 | N37: 578.15 | O37: 321.294 | P37: 193.736
B38: Industrial | C38: 100 | D38: 600 | G38: > 100 - 600 | H38: 7.21 | I38: 6.488 | J38: 3.605 | K38: 2.174 | L38: R$/m³ | M38: 4247.508 | N38: 3822.15 | O38: 2123.794 | P38: 1280.736
B39: Industrial | C39: 600 | D39: 999999 | G39: > 600 | H39: 7.21 | I39: 6.488 | J39: 3.605 | K39: 2.174 | L39: R$/m³
B40: Pública | C40: 0 | D40: 3 | E40: Pública | F40: Pub | G40: 0 - 3 | H40: 9.9 | I40: 8.91 | J40: 4.96 | K40: 2.99 | L40: R$/mês | M40: =H40 -> 9.9 | N40: =I40 -> 8.91 | O40: =J40 -> 4.96 | P40: =K40 -> 2.99
B41: Pública | C41: 3 | D41: 6 | G41: > 3 - 6 | H41: 3.3 | I41: 2.97 | J41: 1.65 | K41: 0.99 | L41: R$/m³ | M41: =M40+($D41-$D40)*H41 -> 19.8 | N41: =N40+($D41-$D40)*I41 -> 17.82 | O41: =O40+($D41-$D40)*J41 -> 9.91 | P41: =P40+($D41-$D40)*K41 -> 5.96
B42: Pública | C42: 6 | D42: 10 | G42: > 6 - 10 | H42: 3.308 | I42: 2.978 | J42: 1.653 | K42: 0.997 | L42: R$/m³ | M42: =M41+($D42-$D41)*H42 -> 33.032 | N42: 29.732 | O42: =O41+($D42-$D41)*J42 -> 16.522 | P42: 9.948
B43: Pública | C43: 10 | D43: 20 | G43: > 10 - 20 | H43: 5.694 | I43: 5.124 | J43: 2.847 | K43: 1.717 | L43: R$/m³ | M43: 89.972 | N43: 80.972 | O43: 44.992 | P43: 27.118
B44: Pública | C44: 20 | D44: 40 | G44: > 20 - 40 | H44: 5.694 | I44: 5.124 | J44: 2.847 | K44: 1.717 | L44: R$/m³ | M44: 203.852 | N44: 183.452 | O44: 101.932 | P44: 61.458
B45: Pública | C45: 40 | D45: 100 | G45: > 40 -100 | H45: 6.775 | I45: 6.097 | J45: 3.389 | K45: 2.044 | L45: R$/m³ | M45: 610.352 | N45: 549.272 | O45: 305.272 | P45: 184.098
B46: Pública | C46: 100 | D46: 300 | G46: > 100 - 300 | H46: 6.848 | I46: 6.164 | J46: 3.425 | K46: 2.066 | L46: R$/m³ | M46: 1979.952 | N46: 1782.072 | O46: 990.272 | P46: 597.298
B47: Pública | C47: 300 | D47: 999999 | G47: > 300 | H47: 6.848 | I47: 6.164 | J47: 3.425 | K47: 2.066 | L47: R$/m³

Sheet Cesama (hidden)
C1: Título
C2: =TODAY() -> 2015-11-13
E11: Tabela Tarifária II - Reajuste 2015 Tarifa de Aplicação (abr/15 - mar/16)
E12: Categorias | F12: Faixas | G12: Tarifas | T12: Valor
G13: Água | H13: Esgoto (%) | I13: Esgoto | J13: unidade | T13: Água | U13: Esgoto
B14: Residencial Social | C14: 0 | D14: 5 | E14: Residencial Tarifa Social | F14: 0 a 5 m³ | G14: 0.8299 | H14: 0.5999518014 | I14: 0.4979 | J14: R$/m³ | K14: =G14*5 -> 4.1495 | M14: =I14*5 -> 2.4895 | P14: Categoria | Q14: ='Calculadora de Tarifas'!M11 -> 0 | T14: =(IF(Q17="0",SUMIFS(G14:G46,B14:B46,Q14,D14:D46,S17)*S17,SUMIFS(K14:K46,B14:B46,Q14,D14:D46,Q17)+(Q15-Q17)*SUMIFS(G14:G46,B14:B46,Q14,D14:D46,S17))) ->  | U14: =(IF(Q17="0",SUMIFS(I14:I46,B14:B46,Q14,D14:D46,S17)*S17,SUMIFS(M14:M50,B14:B50,Q14,D14:D50,Q17)+(Q15-Q17)*SUMIFS(I14:I50,B14:B50,Q14,D14:D50,S17))) -> 
B15: Residencial Social | C15: 5 | D15: 10 | F15: > 5 a 10 m³ | G15: 1.1067 | H15: 0.5999819283 | I15: 0.664 | J15: R$/m³ | K15: =K14+($D15-$D14)*G15 -> 9.683 | M15: =M14+($D15-$D14)*I15 -> 5.8095 | P15: Consumo (m³) | Q15: ='Calculadora de Tarifas'!U6/'Calculadora de Tarifas'!AF11 -> 0
B16: Residencial Social | C16: 10 | D16: 20 | F16: > 10 a 20 m³ | G16: 1.7159 | H16: 0.7999883443 | I16: 1.3727 | J16: R$/m³ | K16: =K15+($D16-$D15)*G16 -> 26.842 | M16: =M15+($D16-$D15)*I16 -> 19.5365
B17: Residencial Social | C17: 20 | D17: 30 | F17: > 20 a 30 m³ | G17: 4.0526 | H17: 1 | I17: 4.0526 | J17: R$/m³ | K17: =K16+($D17-$D16)*G17 -> 67.368 | M17: =M16+($D17-$D16)*I17 -> 60.0625 | Q17: =IFERROR(INDEX(IF(B14:B46=Q14,D14:D46,"Erro"),MATCH(Q15,IF(B14:B46=Q14,D14:D46,"Erro"),1),),"0") -> 0 | R17: a | S17: =IFERROR(INDEX(IF(B14:B46=Q14,D14:D46,"Erro"),MATCH(Q15,IF(B14:B46=Q14,D14:D46,"Erro"),1)+1,),IF(Q14="Residencial Social","5",IF(Q14="Residencial Unifamiliar","5",IF(Q14="Residencial Multifamiliar","5",IF(Q14="Comercial","10",IF(Q14="Industrial","30",IF(Q14="Pública","15",""))))))) ->  | T17: m³
B18: Residencial Social | C18: 30 | D18: 50 | F18: > 30 a 50 m³ | G18: 4.291 | H18: 1 | I18: 4.291 | J18: R$/m³ | K18: =K17+($D18-$D17)*G18 -> 153.188 | M18: =M17+($D18-$D17)*I18 -> 145.8825
B19: Residencial Social | C19: 50 | D19: 999999 | F19: > 50 m³ | G19: 5.7213 | H19: 1 | I19: 5.7213 | J19: R$/m³
B20: Residencial Unifamiliar | C20: 0 | D20: 5 | E20: Residencial Unifamiliar | F20: 0 a 5 m³ | G20: 2.0746 | H20: 0.6000192808 | I20: 1.2448 | J20: R$/m³ | K20: =G20*5 -> 10.373 | M20: =I20*5 -> 6.224
B21: Residencial Unifamiliar | C21: 5 | D21: 10 | F21: > 5 a 10 m³ | G21: 2.2133 | H21: 0.5999638549 | I21: 1.3279 | J21: R$/m³ | K21: =K20+($D21-$D20)*G21 -> 21.4395 | M21: =M20+($D21-$D20)*I21 -> 12.8635
B22: Residencial Unifamiliar | C22: 10 | D22: 20 | F22: > 10 a 20 m³ | G22: 2.86 | H22: 0.799965035 | I22: 2.2879 | J22: R$/m³ | K22: =K21+($D22-$D21)*G22 -> 50.0395 | M22: =M21+($D22-$D21)*I22 -> 35.7425
B23: Residencial Unifamiliar | C23: 20 | D23: 30 | F23: > 20 a 30 m³ | G23: 4.0526 | H23: 1 | I23: 4.0526 | J23: R$/m³ | K23: =K22+($D23-$D22)*G23 -> 90.5655 | M23: =M22+($D23-$D22)*I23 -> 76.2685
B24: Residencial Unifamiliar | C24: 30 | D24: 50 | F24: > 30 a 50 m³ | G24: 4.291 | H24: 1 | I24: 4.291 | J24: R$/m³ | K24: =K23+($D24-$D23)*G24 -> 176.3855 | M24: =M23+($D24-$D23)*I24 -> 162.0885
B25: Residencial Unifamiliar | C25: 50 | D25: 999999 | F25: > 50 m³ | G25: 5.7213 | H25: 1 | I25: 5.7213 | J25: R$/m³
B26: Residencial Multifamiliar | C26: 0 | D26: 5 | E26: Residencial Multifamiliar | F26: 0 a 5 m³ | G26: 2.0746 | H26: 1 | I26: 2.0746 | J26: R$/m³ | K26: =G26*5 -> 10.373 | M26: =I26*5 -> 10.373
B27: Residencial Multifamiliar | C27: 5 | D27: 10 | F27: > 5 a 10 m³ | G27: 2.2133 | H27: 1 | I27: 2.2133 | J27: R$/m³ | K27: =K26+($D27-$D26)*G27 -> 21.4395 | M27: =M26+($D27-$D26)*I27 -> 21.4395
B28: Residencial Multifamiliar | C28: 10 | D28: 20 | F28: > 10 a 20 m³ | G28: 2.86 | H28: 1 | I28: 2.86 | J28: R$/m³ | K28: =K27+($D28-$D27)*G28 -> 50.0395 | M28: =M27+($D28-$D27)*I28 -> 50.0395
B29: Residencial Multifamiliar | C29: 20 | D29: 30 | F29: > 20 a 30 m³ | G29: 4.0526 | H29: 1 | I29: 4.0526 | J29: R$/m³ | K29: =K28+($D29-$D28)*G29 -> 90.5655 | M29: =M28+($D29-$D28)*I29 -> 90.5655
B30: Residencial Multifamiliar | C30: 30 | D30: 50 | F30: > 30 a 50 m³ | G30: 4.291 | H30: 1 | I30: 4.291 | J30: R$/m³ | K30: =K29+($D30-$D29)*G30 -> 176.3855 | M30: =M29+($D30-$D29)*I30 -> 176.3855
B31: Residencial Multifamiliar | C31: 50 | D31: 999999 | F31: > 50 m³ | G31: 5.7213 | H31: 1 | I31: 5.7213 | J31: R$/m³
B32: Comercial | C32: 0 | D32: 10 | E32: Comercial | F32: 0 a 10 m³ | G32: 2.9744 | H32: 1 | I32: 2.9744 | J32: R$/m³ | K32: =G32*10 -> 29.744 | M32: =I32*10 -> 29.744
B33: Comercial | C33: 10 | D33: 20 | F33: > 10 a 20 m³ | G33: 4.0609 | H33: 1 | I33: 4.0609 | J33: R$/m³ | K33: =K32+($D33-$D32)*G33 -> 70.353 | M33: =M32+($D33-$D32)*I33 -> 70.353
B34: Comercial | C34: 20 | D34: 30 | F34: > 20 a 30 m³ | G34: 4.2501 | H34: 1 | I34: 4.2501 | J34: R$/m³ | K34: =K33+($D34-$D33)*G34 -> 112.854 | M34: =M33+($D34-$D33)*I34 -> 112.854
B35: Comercial | C35: 30 | D35: 50 | F35: > 30 a 50 m³ | G35: 4.6746 | H35: 1 | I35: 4.6746 | J35: R$/m³ | K35: =K34+($D35-$D34)*G35 -> 206.346 | M35: =M34+($D35-$D34)*I35 -> 206.346
B36: Comercial | C36: 50 | D36: 999999 | F36: > 50 | G36: 5.6659 | H36: 1 | I36: 5.6659 | J36: R$/m³
B37: Industrial | C37: 0 | D37: 30 | E37: Industrial | F37: 0 a 30 m³ | G37: 2.9744 | H37: 1 | I37: 2.9744 | J37: R$/m³ | K37: =G37*30 -> 89.232 | M37: =I37*30 -> 89.232
B38: Industrial | C38: 30 | D38: 50 | F38: > 30 a 50 m³ | G38: 4.0609 | H38: 1 | I38: 4.0609 | J38: R$/m³ | K38: =K37+($D38-$D37)*G38 -> 170.45 | M38: =M37+($D38-$D37)*I38 -> 170.45
B39: Industrial | C39: 50 | D39: 75 | F39: > 50 a 75 m³ | G39: 4.2501 | H39: 1 | I39: 4.2501 | J39: R$/m³ | K39: =K38+($D39-$D38)*G39 -> 276.7025 | M39: =M38+($D39-$D38)*I39 -> 276.7025
B40: Industrial | C40: 75 | D40: 100 | F40: > 75 a 100 m³ | G40: 4.6746 | H40: 1 | I40: 4.6746 | J40: R$/m³ | K40: =K39+($D40-$D39)*G40 -> 393.5675 | M40: =M39+($D40-$D39)*I40 -> 393.5675
B41: Industrial | C41: 100 | D41: 999999 | F41: > 100 | G41: 5.6659 | H41: 1 | I41: 5.6659 | J41: R$/m³
B42: Pública | C42: 0 | D42: 15 | E42: Pública | F42: 0 a 15 m³ | G42: 2.3372 | H42: 1 | I42: 2.3372 | J42: R$/m³ | K42: =G42*15 -> 35.058 | M42: =I42*15 -> 35.058
B43: Pública | C43: 15 | D43: 20 | F43: > 15 a 20 m³ | G43: 2.493 | H43: 1 | I43: 2.493 | J43: R$/m³ | K43: =K42+($D43-$D42)*G43 -> 47.523 | M43: =M42+($D43-$D42)*I43 -> 47.523
B44: Pública | C44: 20 | D44: 30 | F44: > 20 a 30 m³ | G44: 2.7007 | H44: 1 | I44: 2.7007 | J44: R$/m³ | K44: =K43+($D44-$D43)*G44 -> 74.53 | M44: =M43+($D44-$D43)*I44 -> 74.53
B45: Pública | C45: 30 | D45: 50 | F45: > 30 a 50 m³ | G45: 2.9084 | H45: 1 | I45: 2.9084 | J45: R$/m³ | K45: =K44+($D45-$D44)*G45 -> 132.698 | M45: =M44+($D45-$D44)*I45 -> 132.698
B46: Pública | C46: 50 | D46: 999999 | F46: > 50 | G46: 3.1684 | H46: 1 | I46: 3.1684 | J46: R$/m³

Sheet Saae Itabira (hidden)
C1: Título
C2: =TODAY() -> 2015-11-13
E11: Tabela Tarifária II - Revisão Específica 2015 Tarifa de Aplicação Novembro/15 a Outubro/16)
E12: Categorias | F12: Faixas | G12: Tarifas | T12: Valor
G13: Água | H13: Esgoto | I13: unidade | T13: Água | U13: Esgoto
B14: Residencial Social | D14: 0 | E14: Residencial Tarifa Social | F14: Disponibilidade | G14: 8.3936 | H14: 5.0339 | I14: R$/mês | P14: Categoria | Q14: ='Calculadora de Tarifas'!M11 -> 0 | T14: =(SUMIFS(J14:J45,B14:B45,Q14,D14:D45,Q17)+(Q15-Q17)*SUMIFS(G14:G45,B14:B45,Q14,D14:D45,S17)+IF(Q17=0,SUMIFS(G14:G45,B14:B45,Q14,D14:D45,Q17),0)) -> 0 | U14: =(SUMIFS(K14:K45,B14:B45,Q14,D14:D45,Q17)+(Q15-Q17)*SUMIFS(H14:H45,B14:B45,Q14,D14:D45,S17)+IF(Q17=0,SUMIFS(H14:H45,B14:B45,Q14,D14:D45,Q17),0)) -> 0
B15: Residencial Social | C15: 0 | D15: 5 | F15: 0 a 5 m³ | G15: 0.5876 | H15: 0.3548 | I15: R$/m³ | J15: =G14+($D15-$C15)*G15 -> 11.3316 | K15: =H14+($D15-$C15)*H15 -> 6.8079 | P15: Consumo (m³) | Q15: ='Calculadora de Tarifas'!U6/'Calculadora de Tarifas'!AF11 -> 0
B16: Residencial Social | C16: 5 | D16: 10 | F16: > 5 a 10 m³ | G16: 0.7983 | H16: 0.4768 | I16: R$/m³ | J16: =J15+($D16-$C16)*G16 -> 15.3231 | K16: 9.1919
B17: Residencial Social | C17: 10 | D17: 15 | F17: > 10 a 15 m³ | G17: 0.9979 | H17: 0.5987 | I17: R$/m³ | J17: 20.3126 | K17: 12.1854 | Q17: =IFERROR(INDEX(IF(B14:B45=Q14,D14:D45,"Erro"),MATCH(Q15,IF(B14:B45=Q14,D14:D45,"Erro"),1),),"0") -> 0 | R17: a | S17: =IFERROR(INDEX(IF(B14:B45=Q14,D14:D45,"Erro"),MATCH(Q15,IF(B14:B45=Q14,D14:D45,"Erro"),1)+1,),IF(Q14="Residencial Social","5",IF(Q14="Residencial","5",IF(Q14="Comercial","10",IF(Q14="Industrial","15",IF(Q14="Pública","10","")))))) ->  | T17: m³
B18: Residencial Social | C18: 15 | D18: 20 | F18: > 15 a 20 m³ | G18: 1.8073 | H18: 1.0844 | I18: R$/m³ | J18: 29.3491 | K18: 17.6074
B19: Residencial Social | C19: 20 | D19: 30 | F19: > 20 a 30 m³ | G19: 2.9938 | H19: 1.7963 | I19: R$/m³ | J19: 59.2871 | K19: 35.5704
B20: Residencial Social | C20: 30 | D20: 999999 | F20: > 30 m³ | G20: 4.6902 | H20: 2.8141 | I20: R$/m³
B21: Residencial | D21: 0 | E21: Residencial Normal | F21: Disponibilidade | G21: 13.982 | H21: 8.3936 | I21: R$/mês
B22: Residencial | C22: 0 | D22: 5 | F22: 0 a 5 m³ | G22: 0.9757 | H22: 0.5766 | I22: R$/m³ | J22: =G21+($D22-$C22)*G22 -> 18.8605 | K22: =H21+($D22-$C22)*H22 -> 11.2766
B23: Residencial | C23: 5 | D23: 10 | F23: > 5 a 10 m³ | G23: 1.009 | H23: 0.6098 | I23: R$/m³ | J23: =J22+($D23-$C23)*G23 -> 23.9055 | K23: 14.3256
B24: Residencial | C24: 10 | D24: 15 | F24: > 10 a 15 m³ | G24: 1.1088 | H24: 0.6653 | I24: R$/m³ | J24: 29.4495 | K24: 17.6521
B25: Residencial | C25: 15 | D25: 20 | F25: > 15 a 20 m³ | G25: 1.8073 | H25: 1.0866 | I25: R$/m³ | J25: 38.486 | K25: 23.0851
B26: Residencial | C26: 20 | D26: 30 | F26: > 20 a 30 m³ | G26: 2.9938 | H26: 1.7963 | I26: R$/m³ | J26: 68.424 | K26: 41.0481
B27: Residencial | C27: 30 | D27: 999999 | F27: > 30 m³ | G27: 4.6902 | H27: 2.8163 | I27: R$/m³
B28: Comercial | D28: 0 | E28: Comercial | F28: Disponibilidade | G28: 16.7872 | H28: 10.079 | I28: R$/mês
B29: Comercial | C29: 0 | D29: 10 | F29: 0 a 10 m³ | G29: 1.3971 | H29: 0.8316 | I29: R$/m³ | J29: =G28+($D29-$C29)*G29 -> 30.7582 | K29: =H28+($D29-$C29)*H29 -> 18.395
B30: Comercial | C30: 10 | D30: 20 | F30: > 10 a 20 m³ | G30: 2.3728 | H30: 1.4303 | I30: R$/m³ | J30: =J29+($D30-$C30)*G30 -> 54.4862 | K30: 32.698
B31: Comercial | C31: 20 | D31: 30 | F31: > 20 a 30 m³ | G31: 2.6611 | H31: 1.5967 | I31: R$/m³ | J31: 81.0972 | K31: 48.665
B32: Comercial | C32: 30 | D32: 60 | F32: > 30 a 60 m³ | G32: 3.3597 | H32: 2.018 | I32: R$/m³ | J32: 181.8882 | K32: 109.205
B33: Comercial | C33: 60 | D33: 999999 | F33: > 60 m³ | G33: 4.535 | H33: 2.7277 | I33: R$/m³
B34: Industrial | D34: 0 | E34: Industrial | F34: Disponibilidade | G34: 20.9785 | H34: 12.5849 | I34: R$/mês
B35: Industrial | C35: 0 | D35: 15 | F35: 0 a 15 m³ | G35: 2.0956 | H35: 1.264 | I35: R$/m³ | J35: =G34+($D35-$C35)*G35 -> 52.4125 | K35: =H34+($D35-$C35)*H35 -> 31.5449
B36: Industrial | C36: 15 | D36: 30 | F36: > 15 a 30 m³ | G36: 3.149 | H36: 1.885 | I36: R$/m³ | J36: =J35+($D36-$C36)*G36 -> 99.6475 | K36: 59.8199
B37: Industrial | C37: 30 | D37: 100 | F37: > 30 a 100 m³ | G37: 3.7367 | H37: 2.2398 | I37: R$/m³ | J37: 361.2165 | K37: 216.6059
B38: Industrial | C38: 100 | D38: 200 | F38: > 100 a 200 m³ | G38: 4.3354 | H38: 2.5946 | I38: R$/m³ | J38: 794.7565 | K38: 476.0659
B39: Industrial | C39: 200 | D39: 999999 | F39: > 200 m³ | G39: 4.4906 | H39: 2.6944 | I39: R$/m³
B40: Pública | D40: 0 | E40: Pública | F40: Disponibilidade | G40: 13.982 | H40: 8.3936 | I40: R$/mês
B41: Pública | C41: 0 | D41: 10 | F41: 0 a 10 m³ | G41: 1.264 | H41: 0.7651 | I41: R$/m³ | J41: =G40+($D41-$C41)*G41 -> 26.622 | K41: =H40+($D41-$C41)*H41 -> 16.0446
B42: Pública | C42: 10 | D42: 20 | F42: > 10 a 20 m³ | G42: 1.6743 | H42: 1.009 | I42: R$/m³ | J42: =J41+($D42-$C42)*G42 -> 43.365 | K42: 26.1346
B43: Pública | C43: 20 | D43: 50 | F43: > 20 a 50 m³ | G43: 2.7942 | H43: 1.6743 | I43: R$/m³ | J43: 127.191 | K43: 76.3636
B44: Pública | C44: 50 | D44: 100 | F44: > 50 a 100 m³ | G44: 3.9362 | H44: 2.3617 | I44: R$/m³ | J44: 324.001 | K44: 194.4486
B45: Pública | C45: 100 | D45: 999999 | F45: > 100 m³ | G45: 4.1247 | H45: 2.4726 | I45: R$/m³
G47: =SUM(G14:G45)-SUM('[1]Quadro Tar. 2015_Aplic'!$D$6:$D$37) -> 0 | H47: =SUM(H14:H45)-SUM('[1]Quadro Tar. 2015_Aplic'!$F$6:$F$37) -> 0

Sheet Saae Passos (hidden)
C1: Título
C2: =TODAY() -> 2015-11-13
E11: Tabela Tarifária II - Reajuste 2014 Tarifa de Aplicação
E12: Categorias | F12: Faixas | G12: Tarifas | T12: Valor
G13: Água | H13: Esgoto | I13: unidade | T13: Água | U13: Esgoto
B14: Residencial Social | D14: 0 | E14: Residencial Tarifa Social | F14: disponibilidade | G14: 5.27 | H14: 2.64 | I14: R$/mês | P14: Categoria | Q14: ='Calculadora de Tarifas'!M11 -> 0 | T14: =(SUMIFS(J14:J48,B14:B48,Q14,D14:D48,Q17)+(Q15-Q17)*SUMIFS(G14:G48,B14:B48,Q14,D14:D48,S17)+IF(Q17=0,SUMIFS(G14:G45,B14:B45,Q14,D14:D45,Q17),0)) -> 0 | U14: =(SUMIFS(K14:K48,B14:B48,Q14,D14:D48,Q17)+(Q15-Q17)*SUMIFS(H14:H48,B14:B48,Q14,D14:D48,S17)+IF(Q17=0,SUMIFS(H14:H45,B14:B45,Q14,D14:D45,Q17),0)) -> 0
B15: Residencial Social | C15: 0 | D15: 10 | F15: 0 a 10 m³ | G15: 0.46 | H15: 0.23 | I15: R$/m³ | J15: =G14+($D15-$C15)*G15 -> 9.87 | K15: =H14+($D15-$C15)*H15 -> 4.94 | P15: Consumo (m³) | Q15: ='Calculadora de Tarifas'!M9/'Calculadora de Tarifas'!AF11 -> 0
B16: Residencial Social | C16: 10 | D16: 15 | F16: > 10 a 15 m³ | G16: 0.65 | H16: 0.325 | I16: R$/m³ | J16: =J15+($D16-$C16)*G16 -> 13.12 | K16: 6.565
B17: Residencial Social | C17: 15 | D17: 30 | F17: > 15 a 30 m³ | G17: 2.102 | H17: 1.051 | I17: R$/m³ | J17: 44.65 | K17: 22.33 | Q17: =IFERROR(INDEX(IF(B14:B48=Q14,D14:D48,"Erro"),MATCH(Q15,IF(B14:B48=Q14,D14:D48,"Erro"),1),),"0") -> 0 | R17: a | S17: =IFERROR(INDEX(IF(B14:B48=Q14,D14:D48,"Erro"),MATCH(Q15,IF(B14:B48=Q14,D14:D48,"Erro"),1)+1,),IF(Q14="Residencial Social","10",IF(Q14="Residencial","15",IF(Q14="Comercial","15",IF(Q14="Industrial","15",IF(Q14="Pública","15","")))))) ->  | T17: m³
B18: Residencial Social | C18: 30 | D18: 60 | F18: > 30 a 60 m³ | G18: 2.49 | H18: 1.245 | I18: R$/m³ | J18: 119.35 | K18: 59.68
B19: Residencial Social | C19: 60 | D19: 100 | F19: > 60 a 100 m³ | G19: 3.175 | H19: 1.588 | I19: R$/m³ | J19: 246.35 | K19: 123.2
B20: Residencial Social | C20: 100 | D20: 999999 | F20: > 100 m³ | G20: 3.611 | H20: 1.806 | I20: R$/m³
B21: Residencial | D21: 0 | E21: Residencial Normal | F21: disponibilidade | G21: 7.53 | H21: 3.77 | I21: R$/mês
B22: Residencial | C22: 0 | D22: 15 | F22: 0 a 15 m³ | G22: 0.65 | H22: 0.33 | I22: R$/m³ | J22: =G21+($D22-$C22)*G22 -> 17.28 | K22: =H21+($D22-$C22)*H22 -> 8.72
B23: Residencial | C23: 15 | D23: 30 | F23: > 15 a 30 m³ | G23: 2.102 | H23: 1.051 | I23: R$/m³ | J23: =J22+($D23-$C23)*G23 -> 48.81 | K23: 24.485
B24: Residencial | C24: 30 | D24: 60 | F24: > 30 a 60 m³ | G24: 2.49 | H24: 1.245 | I24: R$/m³ | J24: 123.51 | K24: 61.835
B25: Residencial | C25: 60 | D25: 100 | F25: > 60 a 100 m³ | G25: 3.175 | H25: 1.588 | I25: R$/m³ | J25: 250.51 | K25: 125.355
B26: Residencial | C26: 100 | D26: 200 | F26: > 100 a 200 m³ | G26: 3.611 | H26: 1.806 | I26: R$/m³ | J26: 611.61 | K26: 305.955
B27: Residencial | C27: 200 | D27: 999999 | F27: > 200 m³ | G27: 4.256 | H27: 2.128 | I27: R$/m³
B28: Comercial | D28: 0 | E28: Comercial | F28: disponibilidade | G28: 9.03 | H28: 4.52 | I28: R$/mês
B29: Comercial | C29: 0 | D29: 15 | F29: 0 a 15 m³ | G29: 0.78 | H29: 0.39 | I29: R$/m³ | J29: =G28+($D29-$C29)*G29 -> 20.73 | K29: =H28+($D29-$C29)*H29 -> 10.37
B30: Comercial | C30: 15 | D30: 30 | F30: > 15 a 30 m³ | G30: 1.683 | H30: 0.842 | I30: R$/m³ | J30: =J29+($D30-$C30)*G30 -> 45.975 | K30: 23
B31: Comercial | C31: 30 | D31: 60 | F31: > 30 a 60 m³ | G31: 2.511 | H31: 1.256 | I31: R$/m³ | J31: 121.305 | K31: 60.68
B32: Comercial | C32: 60 | D32: 100 | F32: > 60 a 100 m³ | G32: 3.346 | H32: 1.673 | I32: R$/m³ | J32: 255.145 | K32: 127.6
B33: Comercial | C33: 100 | D33: 200 | F33: > 100 a 200 m³ | G33: 3.489 | H33: 1.745 | I33: R$/m³ | J33: 604.045 | K33: 302.1
B34: Comercial | C34: 200 | D34: 999999 | F34: > 200 m³ | G34: 4.031 | H34: 2.016 | I34: R$/m³
B35: Industrial | D35: 0 | E35: Industrial | F35: disponibilidade | G35: 9.03 | H35: 4.52 | I35: R$/mês
B36: Industrial | C36: 0 | D36: 15 | F36: 0 a 15 m³ | G36: 0.78 | H36: 0.39 | I36: R$/m³ | J36: =G35+($D36-$C36)*G36 -> 20.73 | K36: =H35+($D36-$C36)*H36 -> 10.37
B37: Industrial | C37: 15 | D37: 30 | F37: > 15 a 30 m³ | G37: 1.683 | H37: 0.842 | I37: R$/m³ | J37: =J36+($D37-$C37)*G37 -> 45.975 | K37: 23
B38: Industrial | C38: 30 | D38: 60 | F38: > 30 a 60 m³ | G38: 2.511 | H38: 1.256 | I38: R$/m³ | J38: 121.305 | K38: 60.68
B39: Industrial | C39: 60 | D39: 100 | F39: > 60 a 100 m³ | G39: 3.346 | H39: 1.673 | I39: R$/m³ | J39: 255.145 | K39: 127.6
B40: Industrial | C40: 100 | D40: 200 | F40: > 100 a 200 m³ | G40: 3.489 | H40: 1.745 | I40: R$/m³ | J40: 604.045 | K40: 302.1
B41: Industrial | C41: 200 | D41: 999999 | F41: > 200 m³ | G41: 4.031 | H41: 2.016 | I41: R$/m³
B42: Pública | D42: 0 | E42: Pública | F42: disponibilidade | G42: 7.86 | H42: 3.93 | I42: R$/mês
B43: Pública | C43: 0 | D43: 15 | F43: 0 a 15 m³ | G43: 0.67 | H43: 0.34 | I43: R$/m³ | J43: =G42+($D43-$C43)*G43 -> 17.91 | K43: =H42+($D43-$C43)*H43 -> 9.03
B44: Pública | C44: 15 | D44: 30 | F44: > 15 a 30 m³ | G44: 2.102 | H44: 1.051 | I44: R$/m³ | J44: =J43+($D44-$C44)*G44 -> 49.44 | K44: 24.795
B45: Pública | C45: 30 | D45: 60 | F45: > 30 a 60 m³ | G45: 2.49 | H45: 1.245 | I45: R$/m³ | J45: 124.14 | K45: 62.145
B46: Pública | C46: 60 | D46: 100 | F46: > 60 a 100 m³ | G46: 3.034 | H46: 1.517 | I46: R$/m³ | J46: 245.5 | K46: 122.825
B47: Pública | C47: 100 | D47: 200 | F47: > 100 a 200 m³ | G47: 3.132 | H47: 1.566 | I47: R$/m³ | J47: 558.7 | K47: 279.425
B48: Pública | C48: 200 | D48: 999999 | F48: > 200 m³ | G48: 3.502 | H48: 1.751 | I48: R$/m³

Sheet Sae Ituiutaba (hidden)
C1: Título
C2: =TODAY() -> 2015-11-13
E11: Tabela Tarifária - Reajuste 2014 Tarifa de Aplicação (Out/14 - Set/15)
E12: Categorias | F12: Faixas | G12: Tarifas | T12: Valor
G13: Água | H13: Esgoto | I13: unidade | T13: Água | U13: Esgoto
B14: Residencial Social | C14: 0 | D14: 10 | E14: Residencial Tarifa Social | F14: Até 10 m³ | G14: 10.36 | H14: 7.25 | I14: R$/mês | J14: =G14 -> 10.36 | K14: =H14 -> 7.25 | P14: Categoria | Q14: ='Calculadora de Tarifas'!M11 -> 0 | T14: =(IF(Q17="0",SUMIFS(G14:G59,B14:B59,Q14,D14:D59,S17),SUMIFS(J14:J59,B14:B59,Q14,D14:D59,Q17)+(Q15-Q17)*SUMIFS(G14:G59,B14:B59,Q14,D14:D59,S17))) -> 0 | U14: =(IF(Q17="0",SUMIFS(H14:H59,B14:B59,Q14,D14:D59,S17),SUMIFS(K14:K59,B14:B59,Q14,D14:D59,Q17)+(Q15-Q17)*SUMIFS(H14:H59,B14:B59,Q14,D14:D59,S17))) -> 0
B15: Residencial Social | C15: 10 | D15: 15 | F15: > 10 a 15 m³ | G15: 1.469 | H15: 1.029 | I15: R$/m³ | J15: =J14+($D15-$D14)*G15 -> 17.705 | K15: =K14+($D15-$D14)*H15 -> 12.395 | P15: Consumo (m³) | Q15: ='Calculadora de Tarifas'!U6/'Calculadora de Tarifas'!AF11 -> 0
B16: Residencial Social | C16: 15 | D16: 20 | F16: > 15 a 20 m³ | G16: 2.014 | H16: 1.41 | I16: R$/m³ | J16: =J15+($D16-$D15)*G16 -> 27.775 | K16: =K15+($D16-$D15)*H16 -> 19.445
B17: Residencial Social | C17: 20 | D17: 25 | F17: > 20 a 25 m³ | G17: 2.153 | H17: 1.507 | I17: R$/m³ | J17: 38.54 | K17: 26.98 | Q17: =IFERROR(INDEX(IF(B13:B59=Q14,D13:D59,"Erro"),MATCH(Q15,IF(B13:B59=Q14,D13:D59,"Erro"),1),),"0") -> 0 | R17: a | S17: =IFERROR(INDEX(IF(B13:B59=Q14,D13:D59,"Erro"),MATCH(Q15,IF(B13:B59=Q14,D13:D59,"Erro"),1)+1,),IF(Q14="Residencial Social","10",IF(Q14="Residencial","10",IF(Q14="Comercial","30",IF(Q14="Industrial","60",IF(Q14="Pública","10","")))))) -> Erro | T17: m³
B18: Residencial Social | C18: 25 | D18: 30 | F18: > 25 a 30 m³ | G18: 2.662 | H18: 1.864 | I18: R$/m³ | J18: 51.85 | K18: 36.3
B19: Residencial Social | C19: 30 | D19: 35 | F19: > 30 a 35 m³ | G19: 2.721 | H19: 1.905 | I19: R$/m³ | J19: 65.455 | K19: 45.825
B20: Residencial Social | C20: 35 | D20: 40 | F20: > 35 a 40 m³ | G20: 3.086 | H20: 2.16 | I20: R$/m³ | J20: 80.885 | K20: 56.625
B21: Residencial Social | C21: 40 | D21: 45 | F21: > 40 a 45 m³ | G21: 3.528 | H21: 2.47 | I21: R$/m³ | J21: 98.525 | K21: 68.975
B22: Residencial Social | C22: 45 | D22: 50 | F22: > 45 a 50 m³ | G22: 3.688 | H22: 2.581 | I22: R$/m³ | J22: 116.965 | K22: 81.88
B23: Residencial Social | C23: 50 | D23: 55 | F23: > 50 a 55 m³ | G23: 3.955 | H23: 2.769 | I23: R$/m³ | J23: 136.74 | K23: 95.725
B24: Residencial Social | C24: 55 | D24: 60 | F24: > 55 a 60 m³ | G24: 4.55 | H24: 3.185 | I24: R$/m³ | J24: 159.49 | K24: 111.65
B25: Residencial Social | C25: 60 | D25: 999999 | F25: > 60 m³ | G25: 5.018 | H25: 3.512 | I25: R$/m³
B26: Residencial | C26: 0 | D26: 10 | E26: Residencial Normal | F26: Até 10 m³ | G26: 13.47 | H26: 9.43 | I26: R$/mês | J26: =G26 -> 13.47 | K26: =H26 -> 9.43
B27: Residencial | C27: 10 | D27: 15 | F27: > 10 a 15 m³ | G27: 1.469 | H27: 1.029 | I27: R$/m³ | J27: =J26+($D27-$D26)*G27 -> 20.815 | K27: =K26+($D27-$D26)*H27 -> 14.575
B28: Residencial | C28: 15 | D28: 20 | F28: > 15 a 20 m³ | G28: 2.014 | H28: 1.41 | I28: R$/m³ | J28: =J27+($D28-$D27)*G28 -> 30.885 | K28: =K27+($D28-$D27)*H28 -> 21.625
B29: Residencial | C29: 20 | D29: 25 | F29: > 20 a 25 m³ | G29: 2.153 | H29: 1.507 | I29: R$/m³ | J29: 41.65 | K29: 29.16
B30: Residencial | C30: 25 | D30: 30 | F30: > 25 a 30 m³ | G30: 2.662 | H30: 1.864 | I30: R$/m³ | J30: 54.96 | K30: 38.48
B31: Residencial | C31: 30 | D31: 35 | F31: > 30 a 35 m³ | G31: 2.721 | H31: 1.905 | I31: R$/m³ | J31: 68.565 | K31: 48.005
B32: Residencial | C32: 35 | D32: 40 | F32: > 35 a 40 m³ | G32: 3.086 | H32: 2.16 | I32: R$/m³ | J32: 83.995 | K32: 58.805
B33: Residencial | C33: 40 | D33: 45 | F33: > 40 a 45 m³ | G33: 3.528 | H33: 2.47 | I33: R$/m³ | J33: 101.635 | K33: 71.155
B34: Residencial | C34: 45 | D34: 50 | F34: > 45 a 50 m³ | G34: 3.688 | H34: 2.581 | I34: R$/m³ | J34: 120.075 | K34: 84.06
B35: Residencial | C35: 50 | D35: 55 | F35: > 50 a 55 m³ | G35: 3.955 | H35: 2.769 | I35: R$/m³ | J35: 139.85 | K35: 97.905
B36: Residencial | C36: 55 | D36: 60 | F36: > 55 a 60 m³ | G36: 4.55 | H36: 3.185 | I36: R$/m³ | J36: 162.6 | K36: 113.83
B37: Residencial | C37: 60 | D37: 999999 | F37: > 60 m³ | G37: 5.018 | H37: 3.512 | I37: R$/m³
B38: Comercial | C38: 0 | D38: 30 | E38: Comercial | F38: Até 30 m³ | G38: 56.19 | H38: 39.33 | I38: R$/mês | J38: =G38 -> 56.19 | K38: =H38 -> 39.33
B39: Comercial | C39: 30 | D39: 35 | F39: > 30 a 35 m³ | G39: 2.721 | H39: 1.905 | I39: R$/m³ | J39: =J38+($D39-$D38)*G39 -> 69.795 | K39: 48.855
B40: Comercial | C40: 35 | D40: 40 | F40: > 35 a 40 m³ | G40: 3.086 | H40: 2.16 | I40: R$/m³ | J40: 85.225 | K40: 59.655
B41: Comercial | C41: 40 | D41: 45 | F41: > 40 a 45 m³ | G41: 3.528 | H41: 2.47 | I41: R$/m³ | J41: 102.865 | K41: 72.005
B42: Comercial | C42: 45 | D42: 50 | F42: > 45 a 50 m³ | G42: 3.688 | H42: 2.581 | I42: R$/m³ | J42: 121.305 | K42: 84.91
B43: Comercial | C43: 50 | D43: 55 | F43: > 50 a 55 m³ | G43: 3.955 | H43: 2.769 | I43: R$/m³ | J43: 141.08 | K43: 98.755
B44: Comercial | C44: 55 | D44: 60 | F44: > 55 a 60 m³ | G44: 4.55 | H44: 3.185 | I44: R$/m³ | J44: 163.83 | K44: 114.68
B45: Comercial | C45: 60 | D45: 999999 | F45: > 60 m³ | G45: 5.018 | H45: 3.512 | I45: R$/m³
B46: Industrial | C46: 0 | D46: 60 | E46: Industrial | F46: Até 60 m³ | G46: 163.86 | H46: 114.66 | I46: R$/mês | J46: =G46 -> 163.86 | K46: =H46 -> 114.66
B47: Industrial | C47: 60 | D47: 999999 | F47: > 60 m³ | G47: 5.018 | H47: 3.512 | I47: R$/m³
B48: Pública | C48: 0 | D48: 10 | E48: Pública | F48: Até 10 m³ | G48: 13.47 | H48: 9.43 | I48: R$/mês | J48: =G48 -> 13.47 | K48: =H48 -> 9.43
B49: Pública | C49: 10 | D49: 15 | F49: > 10 a 15 m³ | G49: 1.469 | H49: 1.029 | I49: R$/m³ | J49: =J48+($D49-$D48)*G49 -> 20.815 | K49: =K48+($D49-$D48)*H49 -> 14.575
B50: Pública | C50: 15 | D50: 20 | F50: > 15 a 20 m³ | G50: 2.014 | H50: 1.41 | I50: R$/m³ | J50: =J49+($D50-$D49)*G50 -> 30.885 | K50: =K49+($D50-$D49)*H50 -> 21.625
B51: Pública | C51: 20 | D51: 25 | F51: > 20 a 25 m³ | G51: 2.153 | H51: 1.507 | I51: R$/m³ | J51: 41.65 | K51: 29.16
B52: Pública | C52: 25 | D52: 30 | F52: > 25 a 30 m³ | G52: 2.662 | H52: 1.864 | I52: R$/m³ | J52: 54.96 | K52: 38.48
B53: Pública | C53: 30 | D53: 35 | F53: > 30 a 35 m³ | G53: 2.721 | H53: 1.905 | I53: R$/m³ | J53: 68.565 | K53: 48.005
B54: Pública | C54: 35 | D54: 40 | F54: > 35 a 40 m³ | G54: 3.086 | H54: 2.16 | I54: R$/m³ | J54: 83.995 | K54: 58.805
B55: Pública | C55: 40 | D55: 45 | F55: > 40 a 45 m³ | G55: 3.528 | H55: 2.47 | I55: R$/m³ | J55: 101.635 | K55: 71.155
B56: Pública | C56: 45 | D56: 50 | F56: > 45 a 50 m³ | G56: 3.688 | H56: 2.581 | I56: R$/m³ | J56: 120.075 | K56: 84.06
B57: Pública | C57: 50 | D57: 55 | F57: > 50 a 55 m³ | G57: 3.955 | H57: 2.769 | I57: R$/m³ | J57: 139.85 | K57: 97.905
B58: Pública | C58: 55 | D58: 60 | F58: > 55 a 60 m³ | G58: 4.55 | H58: 3.185 | I58: R$/m³ | J58: 162.6 | K58: 113.83
B59: Pública | C59: 60 | D59: 999999 | F59: > 60 m³ | G59: 5.018 | H59: 3.512 | I59: R$/m³
